bitfinex/quotes_BTCUSD_20230108
["timestamp","ask_amount","ask_price","bid_price","bid_amount"]
[1673196555093,0.005,16963.0,16962.0,1.39962074]
[1673196555376,0.005,16963.0,16962.0,0.81949121]
[1673196555854,0.005,16963.0,16962.0,1.39950267]
[1673196556117,0.005,16963.0,16962.0,1.39962074]
[1673196556371,0.005,16963.0,16962.0,1.39950267]
[1673196556870,0.005,16963.0,16962.0,0.69950267]
[1673196557120,0.005,16963.0,16962.0,1.39962074]
[1673196557361,0.005,16963.0,16962.0,0.81960928]
[1673196557622,0.005,16963.0,16962.0,1.39950267]
[1673196560425,0.005,16963.0,16962.0,1.76762867]
[1673196560636,0.005,16963.0,16962.0,1.39950267]
[1673196561384,0.005,16963.0,16962.0,0.81949121]
[1673196562400,0.372787,16963.0,16962.0,0.81949121]
[1673196563156,1.00871091,16963.0,16962.0,0.81949121]
[1673196563412,1.77406286,16963.0,16962.0,0.809]
[1673196564168,1.77406286,16963.0,16962.0,0.7]
[1673196564169,2.03281379,16963.0,16962.0,0.7]
[1673196564426,2.62733179,16963.0,16962.0,0.809]
[1673196566502,2.62733179,16963.0,16962.0,0.80888762]
[1673196567314,2.25954479,16963.0,16962.0,0.80888762]
[1673196568609,2.43537875,16963.0,16962.0,0.80888762]
[1673196568862,2.80316575,16963.0,16962.0,0.80888762]
[1673196569608,2.25980129,16963.0,16962.0,0.80888762]
[1673196569873,1.67028329,16963.0,16962.0,0.80888762]
[1673196570141,1.40653236,16963.0,16962.0,0.80888762]
[1673196570399,0.81701436,16963.0,16962.0,0.80888762]
[1673196570676,0.44484138,16963.0,16962.0,0.80888762]
[1673196570927,0.18109045,16963.0,16962.0,0.82001325]
[1673196571195,0.18109045,16963.0,16962.0,0.8193121]
[1673196572726,0.44484138,16963.0,16962.0,0.8193121]
[1673196576004,0.79650929,16963.0,16962.0,0.8193121]
[1673196577007,0.44484138,16963.0,16962.0,0.8193121]
[1673196579822,0.44484138,16963.0,16962.0,1.39932356]
[1673196580411,0.44484138,16963.0,16962.0,0.8193121]
[1673196585990,0.44484138,16963.0,16962.0,0.11942448]
[1673196586229,0.44484138,16963.0,16962.0,0.109]
[1673196586482,0.62041884,16963.0,16962.0,0.809]
[1673196587222,0.98820584,16963.0,16962.0,0.809]
[1673196587488,1.20993684,16963.0,16962.0,0.809]
[1673196587752,1.6501491,16963.0,16962.0,0.809]
[1673196588262,1.75355779,16963.0,16962.0,0.809]
[1673196588514,2.01792375,16963.0,16962.0,0.809]
[1673196588760,1.65012938,16963.0,16962.0,0.809]
[1673196589269,1.81991359,16963.0,16962.0,0.809]
[1673196589697,2.18770059,16963.0,16962.0,0.809]
[1673196589946,1.75355779,16963.0,16962.0,0.809]
[1673196590200,2.03172517,16963.0,16962.0,0.809]
[1673196590457,2.42548241,16963.0,16962.0,0.80889151]
[1673196590731,4.59580256,16963.0,16962.0,0.80889151]
[1673196590991,4.95858956,16963.0,16962.0,0.7]
[1673196591302,4.96158956,16963.0,16962.0,0.74]
[1673196591567,4.68771273,16963.0,16959.0,0.60223409]
[1673196591821,3.66136297,16963.0,16962.0,0.008]
[1673196592085,3.49147208,16963.0,16962.0,0.008]
[1673196592370,4.22285528,16963.0,16962.0,0.008]
[1673196592636,4.15085528,16963.0,16960.0,0.71184045]
[1673196592894,0.44030763,16961.0,16960.0,0.71184045]
[1673196593162,1.39768163,16961.0,16960.0,0.71184045]
[1673196593889,1.98726863,16961.0,16960.0,0.71184045]
[1673196594394,1.62248163,16961.0,16960.0,0.75184045]
[1673196595166,1.99026863,16961.0,16960.0,0.75184045]
[1673196595410,1.72608405,16961.0,16960.0,0.75184045]
[1673196595669,1.35829705,16961.0,16960.0,0.7531414]
[1673196595936,0.76871005,16961.0,16960.0,0.75184045]
[1673196596457,0.592587,16961.0,16960.0,0.75184045]
[1673196598274,0.76871005,16961.0,16960.0,0.75184045]
[1673196599038,1.13649705,16961.0,16960.0,0.75184045]
[1673196599804,0.76871005,16961.0,16960.0,0.75184045]
[1673196601608,0.76304505,16961.0,16960.0,0.75184045]
[1673196601959,0.76304505,16961.0,16960.0,0.05184045]
[1673196602400,0.76304505,16961.0,16960.0,0.75184045]
[1673196604175,0.586922,16961.0,16960.0,0.75184045]
[1673196604444,0.76304505,16961.0,16960.0,0.75184045]
[1673196606209,0.76304505,16961.0,16960.0,0.74]
[1673196606529,1.02722963,16961.0,16960.0,0.74]
[1673196607249,1.39501663,16961.0,16960.0,0.74]
[1673196607505,1.61681663,16961.0,16960.0,0.74]
[1673196607778,2.22584247,16961.0,16960.0,0.74]
[1673196608079,2.94587557,16961.0,16960.0,0.74]
[1673196608321,2.76975252,16961.0,16960.0,0.74]
[1673196608581,2.54343718,16961.0,16960.0,0.74]
[1673196615019,2.54343718,16961.0,16960.0,0.04]
[1673196616070,2.54343718,16961.0,16960.0,0.74]
[1673196622019,2.54343718,16961.0,16960.0,0.04]
[1673196622744,2.89568328,16961.0,16960.0,0.04]
[1673196623018,2.54343718,16961.0,16960.0,0.74]
[1673196623293,2.71975252,16961.0,16960.0,0.74]
[1673196625366,3.16006015,16961.0,16960.0,0.04]
[1673196625621,3.31992588,16961.0,16960.0,0.04]
[1673196626665,2.89587557,16961.0,16960.0,0.04]
[1673196627965,3.32134282,16961.0,16960.0,0.04]
[1673196629968,2.96909672,16961.0,16960.0,0.04]
[1673196630209,3.36909672,16961.0,16960.0,0.04]
[1673196631884,3.36909672,16961.0,16960.0,0.03780213]
[1673196632127,3.36909672,16961.0,16960.0,0.03583913]
[1673196636721,3.36909672,16961.0,16960.0,0.03555063]
[1673196638139,3.95868372,16961.0,16960.0,0.03555063]
[1673196638395,3.51837609,16961.0,16960.0,0.03555063]
[1673196638668,3.85379278,16961.0,16960.0,0.03555063]
[1673196639690,4.3849589,16961.0,16960.0,0.03555063]
[1673196640458,4.19491458,16961.0,16960.0,0.03555063]
[1673196640729,3.85379278,16961.0,16960.0,0.03555063]
[1673196642254,3.55379278,16961.0,16960.0,0.03555063]
[1673196642520,3.85379278,16961.0,16960.0,0.03555063]
[1673196643851,3.55379278,16961.0,16960.0,0.03555063]
[1673196644098,4.37731737,16961.0,16960.0,0.03555063]
[1673196644619,4.90848349,16961.0,16960.0,0.03555063]
[1673196645888,4.29945765,16961.0,16960.0,0.03555063]
[1673196646654,3.77593306,16961.0,16960.0,0.00209018]
[1673196646902,3.74886694,16961.0,16960.0,0.00209018]
[1673196647122,4.33764232,16961.0,16960.0,0.00209018]
[1673196647404,4.33464232,16961.0,16959.0,0.00851923]
[1673196647683,1.25371661,16960.0,16959.0,0.00851923]
[1673196648155,3.99036961,16960.0,16959.0,0.00851923]
[1673196648211,3.66274994,16960.0,16959.0,0.00851923]
[1673196648447,4.03053694,16960.0,16959.0,0.00851923]
[1673196648955,3.66274994,16960.0,16959.0,0.00851923]
[1673196649213,4.03053694,16960.0,16959.0,0.00851923]
[1673196649466,4.13653694,16960.0,16959.0,0.01551923]
[1673196649689,4.64178456,16960.0,16959.0,0.01551923]
[1673196651995,5.08193793,16960.0,16959.0,0.01551923]
[1673196653985,4.64178456,16960.0,16959.0,0.01551923]
[1673196654213,5.08190146,16960.0,16959.0,0.01551923]
[1673196654960,5.28608849,16960.0,16959.0,0.01551923]
[1673196655252,4.84597159,16960.0,16959.0,0.01551923]
[1673196656200,4.31784977,16960.0,16959.0,0.01551923]
[1673196657410,4.58243308,16960.0,16959.0,0.01551923]
[1673196661786,4.60543482,16960.0,16959.0,0.01551923]
[1673196662034,5.12104602,16960.0,16959.0,0.01551923]
[1673196662305,4.60543482,16960.0,16959.0,0.01551923]
[1673196662544,5.21246664,16960.0,16959.0,0.01551923]
[1673196666537,5.21246664,16960.0,16959.0,0.00174236]
[1673196668894,5.19931195,16960.0,16959.0,0.00174236]
[1673196669169,4.64085151,16960.0,16959.0,0.00174236]
[1673196670492,5.21274856,16960.0,16959.0,0.00174236]
[1673196671000,4.64085151,16960.0,16959.0,0.00174236]
[1673196671275,5.21271319,16960.0,16959.0,0.00174236]
[1673196671524,4.64085151,16960.0,16959.0,0.00174236]
[1673196671796,5.39611549,16960.0,16959.0,0.00174236]
[1673196672115,4.86789353,16960.0,16959.0,0.00174236]
[1673196675654,5.46321427,16960.0,16959.0,0.00014511]
[1673196676600,4.86789353,16960.0,16959.0,0.00014511]
[1673196676909,5.46194819,16960.0,16959.0,0.00014511]
[1673196678122,5.47044819,16960.0,16959.0,0.00014511]
[1673196681928,5.28696766,16960.0,16959.0,0.00014511]
[1673196683915,4.692913,16960.0,16959.0,0.00014511]
[1673196684685,5.28696766,16960.0,16959.0,0.00014511]
[1673196685456,5.28696766,16960.0,16959.0,1.34e-05]
[1673196686719,5.28696766,16960.0,16956.0,0.00883333]
[1673196686720,0.6,16959.0,16956.0,0.00883333]
[1673196686982,1.03996806,16957.0,16956.0,0.00883333]
[1673196687241,3.57846552,16957.0,16956.0,0.00883333]
[1673196688014,3.57846552,16957.0,16956.0,0.01583333]
[1673196688255,4.2646402,16957.0,16956.0,0.00883333]
[1673196688510,4.3206402,16957.0,16956.0,0.01483333]
[1673196689297,4.67266835,16957.0,16956.0,0.01483333]
[1673196689823,4.67268993,16957.0,16956.0,0.01483333]
[1673196694787,4.07268993,16957.0,16956.0,0.01483333]
[1673196696835,4.07297497,16957.0,16956.0,0.01483333]
[1673196697080,3.7206402,16957.0,16956.0,0.01483333]
[1673196698421,3.28067214,16957.0,16956.0,0.01483333]
[1673196700238,3.58067214,16957.0,16956.0,0.01483333]
[1673196703498,4.10863381,16957.0,16956.0,0.01483333]
[1673196704294,3.58067214,16957.0,16956.0,0.01483333]
[1673196704819,3.28067214,16957.0,16956.0,0.01483333]
[1673196705060,3.58067214,16957.0,16956.0,0.01483333]
[1673196705543,4.10863381,16957.0,16956.0,0.01483333]
[1673196705819,3.58067214,16957.0,16956.0,0.01483333]
[1673196706082,4.10863381,16957.0,16956.0,0.01483333]
[1673196708136,3.28067214,16957.0,16956.0,0.01483333]
[1673196708944,3.72136176,16957.0,16956.0,0.01483333]
[1673196709683,3.28067214,16957.0,16956.0,0.01483333]
[1673196709938,0.6,16956.0,16955.0,0.00147001]
[1673196710191,1.97291301,16956.0,16955.0,0.70147001]
[1673196710449,3.30311094,16956.0,16955.0,0.70147001]
[1673196710697,2.91150906,16956.0,16955.0,0.70147001]
[1673196711215,2.91450906,16956.0,16955.0,0.71747001]
[1673196711687,3.30613914,16956.0,16955.0,0.71747001]
[1673196714317,2.93835214,16956.0,16955.0,0.71747001]
[1673196714829,3.30613914,16956.0,16955.0,0.71747001]
[1673196715094,2.93835214,16956.0,16955.0,0.71747001]
[1673196715617,3.30613914,16956.0,16955.0,0.71747001]
[1673196716666,3.30613914,16956.0,16955.0,0.01747001]
[1673196717138,2.93835214,16956.0,16955.0,0.01747001]
[1673196717396,3.30613914,16956.0,16955.0,0.01747001]
[1673196717661,3.30613914,16956.0,16955.0,0.71747001]
[1673196718936,2.93835214,16956.0,16955.0,0.71747001]
[1673196720738,3.30613914,16956.0,16955.0,0.71747001]
[1673196720991,2.93835214,16956.0,16955.0,0.71747001]
[1673196721245,3.30613914,16956.0,16955.0,0.71747001]
[1673196721507,2.93835214,16956.0,16955.0,0.71747001]
[1673196721955,3.30613914,16956.0,16955.0,0.71747001]
[1673196722169,2.93835214,16956.0,16955.0,0.71747001]
[1673196722391,2.54672206,16956.0,16955.0,0.71747001]
[1673196722553,2.8112068,16956.0,16955.0,0.71747001]
[1673196722805,2.37043402,16956.0,16955.0,0.71747001]
[1673196723089,2.58721109,16956.0,16955.0,0.71747001]
[1673196723339,2.95499809,16956.0,16955.0,0.71747001]
[1673196723570,3.30761448,16956.0,16955.0,0.71747001]
[1673196723816,2.93982748,16956.0,16955.0,0.71747001]
[1673196727845,2.54672022,16956.0,16955.0,0.71747001]
[1673196728139,2.9409775,16956.0,16955.0,0.71747001]
[1673196728898,2.9409775,16956.0,16955.0,0.01747001]
[1673196729714,2.9409775,16956.0,16955.0,0.71747001]
[1673196729962,2.94097415,16956.0,16955.0,0.71747001]
[1673196730228,2.54672022,16956.0,16955.0,0.71747001]
[1673196733229,2.9412848,16956.0,16955.0,0.71747001]
[1673196733474,2.54672022,16956.0,16955.0,0.71747001]
[1673196734265,2.3704398,16956.0,16955.0,0.71747001]
[1673196735738,2.3704398,16956.0,16955.0,0.01747001]
[1673196736753,2.81119743,16956.0,16955.0,0.71747001]
[1673196737009,2.54672022,16956.0,16955.0,0.71747001]
[1673196737748,2.94124641,16956.0,16955.0,0.71747001]
[1673196742816,2.94124641,16956.0,16955.0,0.01747001]
[1673196743076,3.30903341,16956.0,16955.0,0.01747001]
[1673196743341,2.94124641,16956.0,16955.0,0.01747001]
[1673196743844,2.94124641,16956.0,16955.0,0.71747001]
[1673196749809,2.94124641,16956.0,16955.0,0.01747001]
[1673196750882,2.94124641,16956.0,16955.0,0.71747001]
[1673196751135,2.54672022,16956.0,16955.0,0.71747001]
[1673196751398,2.94041229,16956.0,16955.0,0.71747001]
[1673196753152,2.54672022,16956.0,16955.0,0.71747001]
[1673196753404,2.54672022,16956.0,16955.0,1.08559601]
[1673196755046,2.81133724,16956.0,16955.0,1.08559601]
[1673196755315,2.54672022,16956.0,16955.0,0.71747001]
[1673196755570,2.58776651,16956.0,16955.0,0.71747001]
[1673196756812,2.58776651,16956.0,16955.0,0.01747001]
[1673196757065,2.94056832,16956.0,16955.0,0.01760803]
[1673196757328,2.81150869,16956.0,16955.0,0.38559601]
[1673196757631,2.54690564,16956.0,16955.0,0.38559601]
[1673196757849,2.37073837,16956.0,16955.0,0.38559601]
[1673196758601,2.37073837,16956.0,16955.0,1.08559601]
[1673196759845,2.37073837,16956.0,16955.0,0.71747001]
[1673196761108,2.50028554,16956.0,16955.0,0.71747001]
[1673196761885,2.94105832,16956.0,16955.0,0.71747001]
[1673196762380,2.67645281,16956.0,16955.0,0.71747001]
[1673196764027,1.51588276,16956.0,16955.0,0.71760803]
[1673196764272,1.51588276,16956.0,16955.0,0.72812796]
[1673196764273,0.74991822,16956.0,16955.0,0.72812796]
[1673196764539,0.57350107,16956.0,16955.0,1.30332258]
[1673196764795,0.13254717,16956.0,16955.0,1.67144858]
[1673196765046,0.13254717,16956.0,16955.0,2.26124458]
[1673196765304,0.13254717,16956.0,16955.0,3.28142725]
[1673196765554,0.13244436,16956.0,16955.0,4.10968835]
[1673196765807,0.13244436,16956.0,16955.0,3.93270434]
[1673196766814,0.13244436,16956.0,16955.0,3.75684448]
[1673196767821,0.13244436,16956.0,16955.0,3.29337648]
[1673196768324,0.13244436,16956.0,16955.0,3.02883252]
[1673196768583,0.13244436,16956.0,16955.0,3.29337648]
[1673196768849,0.13244436,16956.0,16955.0,3.02883252]
[1673196769735,0.13244436,16956.0,16955.0,3.61862852]
[1673196770342,0.13244436,16956.0,16955.0,4.34391643]
[1673196770858,0.13244436,16956.0,16955.0,3.02785741]
[1673196772891,0.13244436,16956.0,16955.0,3.02785086]
[1673196773145,0.13244436,16956.0,16955.0,2.85085398]
[1673196773398,0.13244436,16956.0,16955.0,2.15085398]
[1673196773917,0.13244436,16956.0,16955.0,2.15098545]
[1673196774171,0.13244436,16956.0,16955.0,2.85098545]
[1673196774402,0.13244436,16956.0,16955.0,3.45098545]
[1673196774878,0.13244436,16956.0,16955.0,4.04078145]
[1673196776617,0.13244436,16956.0,16955.0,3.45098545]
[1673196780586,0.13244436,16956.0,16955.0,4.20717551]
[1673196781585,0.13244436,16956.0,16955.0,5.58366674]
[1673196781840,0.13244436,16956.0,16955.0,5.40680133]
[1673196782380,0.13244436,16956.0,16955.0,5.58340748]
[1673196782641,0.23767789,16959.0,16956.0,0.0112016]
[1673196783006,0.5467,16961.0,16958.0,0.47139525]
[1673196783010,0.0071924,16962.0,16958.0,0.47139525]
[1673196783248,0.5648924,16962.0,16960.0,0.6]
[1673196783468,0.00015,16961.0,16960.0,1.77921]
[1673196783681,0.00015,16961.0,16960.0,2.72095406]
[1673196783895,0.00015,16961.0,16960.0,3.42095406]
[1673196784573,0.00015,16961.0,16960.0,2.84215676]
[1673196784796,0.00915,16961.0,16960.0,2.33456076]
[1673196784962,0.00915,16961.0,16960.0,2.33491871]
[1673196785215,0.009,16961.0,16960.0,2.33491871]
[1673196786678,0.009,16961.0,16960.0,2.92454071]
[1673196793406,0.009,16961.0,16960.0,3.51416271]
[1673196794188,0.009,16961.0,16960.0,2.81416271]
[1673196795152,0.009,16961.0,16960.0,3.51416271]
[1673196795412,0.74227475,16961.0,16960.0,3.51380476]
[1673196795663,0.50459686,16961.0,16960.0,1.35561806]
[1673196795923,0.50459686,16961.0,16960.0,0.782]
[1673196796673,0.87238386,16961.0,16960.0,0.782]
[1673196797157,1.46197086,16961.0,16960.0,0.782]
[1673196797913,1.09418386,16961.0,16960.0,0.782]
[1673196798440,1.46197086,16961.0,16960.0,0.782]
[1673196799982,2.05155786,16961.0,16960.0,0.782]
[1673196800724,2.22794252,16961.0,16960.0,0.782]
[1673196801191,2.22748123,16961.0,16960.0,0.782]
[1673196802908,1.68330957,16961.0,16960.0,0.78215583]
[1673196803185,1.68330957,16961.0,16960.0,0.782]
[1673196803931,1.18771271,16961.0,16960.0,0.782]
[1673196804177,0.00853871,16961.0,16960.0,0.79650957]
[1673196804664,0.00853871,16961.0,16960.0,1.37324457]
[1673196804911,0.00853871,16961.0,16960.0,0.79962651]
[1673196805392,0.00853871,16961.0,16960.0,0.79650957]
[1673196806935,0.00853871,16961.0,16960.0,1.95974963]
[1673196807188,0.00853871,16961.0,16960.0,2.32787563]
[1673196809697,0.00853871,16961.0,16960.0,2.92787563]
[1673196810911,0.00853871,16961.0,16960.0,3.51749763]
[1673196815759,0.00853871,16961.0,16960.0,2.81249763]
[1673196816009,0.00853871,16961.0,16960.0,3.51249763]
[1673196817772,0.00853871,16961.0,16960.0,3.14437163]
[1673196818130,0.00853871,16961.0,16960.0,2.55474963]
[1673196820556,0.00853871,16961.0,16960.0,2.55490546]
[1673196823490,0.00853871,16961.0,16960.0,1.85490546]
[1673196824488,0.00853871,16961.0,16960.0,2.55490546]
[1673196826807,0.00853871,16961.0,16960.0,2.55474963]
[1673196827577,0.00853871,16961.0,16960.0,1.96512763]
[1673196828414,0.18492337,16961.0,16960.0,1.96512763]
[1673196829122,0.00853871,16961.0,16960.0,1.96512763]
[1673196829922,0.18492337,16961.0,16960.0,1.96512763]
[1673196830183,0.00853871,16961.0,16960.0,1.96512763]
[1673196830434,0.00853871,16961.0,16960.0,0.66528346]
[1673196830435,0.18492337,16961.0,16960.0,0.66528346]
[1673196830685,0.18492337,16961.0,16960.0,0.66512763]
[1673196830939,0.18492337,16961.0,16960.0,1.25474963]
[1673196831441,0.00853871,16961.0,16960.0,1.95474963]
[1673196832701,0.18492337,16961.0,16960.0,1.95474963]
[1673196833206,0.30117732,16961.0,16960.0,1.95474963]
[1673196835557,1.10341056,16961.0,16960.0,0.777]
[1673196835806,1.64761471,16961.0,16960.0,0.777]
[1673196836124,1.27982771,16961.0,16960.0,0.777]
[1673196836306,1.64761471,16961.0,16960.0,0.777]
[1673196836818,1.71206178,16961.0,16960.0,0.7]
[1673196837079,2.08130444,16961.0,16960.0,0.711]
[1673196837615,1.71352386,16961.0,16960.0,0.711]
[1673196837848,1.27275641,16961.0,16960.0,0.711]
[1673196838608,2.23013041,16961.0,16960.0,0.711]
[1673196838861,2.03907954,16961.0,16960.0,0.711]
[1673196839124,2.40686654,16961.0,16960.0,0.711]
[1673196839389,2.30310799,16961.0,16960.0,0.711]
[1673196839665,2.67089355,16961.0,16960.0,0.711]
[1673196840172,2.40686654,16961.0,16960.0,0.711]
[1673196840673,2.40686654,16961.0,16960.0,0.710932]
[1673196840924,3.98712885,16961.0,16960.0,0.710932]
[1673196841175,3.38712885,16961.0,16960.0,0.710932]
[1673196841396,2.66654004,16961.0,16960.0,0.710932]
[1673196841705,3.63432704,16961.0,16960.0,0.710932]
[1673196841960,3.78314126,16961.0,16960.0,0.710932]
[1673196842523,4.57392859,16961.0,16960.0,0.710932]
[1673196842761,3.78314126,16961.0,16960.0,0.710932]
[1673196843013,4.22298364,16961.0,16960.0,0.011]
[1673196844033,3.85519664,16961.0,16960.0,0.011]
[1673196844277,4.57484992,16961.0,16960.0,0.011]
[1673196844803,4.20706292,16961.0,16960.0,0.011]
[1673196845055,4.57484992,16961.0,16960.0,0.011]
[1673196845306,4.20706292,16961.0,16960.0,0.011]
[1673196845557,4.22298364,16961.0,16960.0,0.011]
[1673196847069,4.25840033,16961.0,16960.0,0.011]
[1673196849117,4.01008292,16961.0,16960.0,0.011]
[1673196849379,3.44333576,16961.0,16960.0,0.011]
[1673196849643,3.51539114,16961.0,16960.0,0.011]
[1673196849863,3.88317814,16961.0,16960.0,0.011]
[1673196850396,3.61940761,16961.0,16960.0,0.011]
[1673196851119,3.88316804,16961.0,16960.0,0.011]
[1673196851592,3.25162061,16961.0,16960.0,0.011]
[1673196851807,3.61940761,16961.0,16960.0,0.011]
[1673196852258,3.25162061,16961.0,16960.0,0.011]
[1673196852457,3.61940761,16961.0,16960.0,0.011]
[1673196853009,4.00698282,16961.0,16960.0,0.011]
[1673196853229,3.63919582,16961.0,16960.0,0.011]
[1673196853542,3.61940761,16961.0,16960.0,0.011]
[1673196854091,3.63942147,16961.0,16960.0,0.011]
[1673196854354,4.00720847,16961.0,16960.0,0.011]
[1673196854861,3.63942147,16961.0,16960.0,0.011]
[1673196855127,4.00720847,16961.0,16960.0,0.011]
[1673196857550,3.63942147,16961.0,16960.0,0.011]
[1673196857818,4.00720847,16961.0,16960.0,0.011]
[1673196858515,3.63942147,16961.0,16960.0,0.011]
[1673196858793,4.00720847,16961.0,16960.0,0.011]
[1673196859046,3.63942147,16961.0,16960.0,0.011]
[1673196859327,4.00720847,16961.0,16960.0,0.011]
[1673196859488,3.63942147,16961.0,16960.0,0.011]
[1673196859784,4.00720847,16961.0,16960.0,0.011]
[1673196860252,3.63942147,16961.0,16960.0,0.011]
[1673196860540,4.00720847,16961.0,16960.0,0.011]
[1673196863465,3.28773888,16961.0,16960.0,0.011]
[1673196863710,3.65552588,16961.0,16960.0,0.011]
[1673196864525,3.2156835,16961.0,16960.0,0.011]
[1673196865742,3.2156835,16961.0,16960.0,0.01089587]
[1673196868018,3.74364517,16961.0,16960.0,0.01089587]
[1673196868251,4.04364517,16961.0,16960.0,0.01089587]
[1673196868990,3.2156835,16961.0,16960.0,0.01089587]
[1673196870013,3.28795852,16961.0,16960.0,0.01089587]
[1673196870268,3.2156835,16961.0,16960.0,0.01089587]
[1673196870777,3.4478965,16961.0,16960.0,0.01089587]
[1673196871034,3.8156835,16961.0,16960.0,0.01089587]
[1673196871783,3.4478965,16961.0,16960.0,0.01089587]
[1673196872062,3.8156835,16961.0,16960.0,0.01089587]
[1673196873616,2.8478965,16961.0,16960.0,0.01089587]
[1673196874617,3.2156835,16961.0,16960.0,0.01089587]
[1673196875145,3.1906835,16961.0,16960.0,0.01089587]
[1673196876109,2.8228965,16961.0,16960.0,0.01089587]
[1673196876365,3.4228965,16961.0,16960.0,0.01089587]
[1673196876620,3.7906835,16961.0,16960.0,0.01089587]
[1673196877149,4.31864517,16961.0,16960.0,0.01089587]
[1673196877904,3.95085817,16961.0,16960.0,0.01089587]
[1673196878158,3.71864517,16961.0,16960.0,0.01089587]
[1673196881697,3.68322848,16961.0,16960.0,0.71089587]
[1673196882601,3.31544148,16961.0,16960.0,0.71089587]
[1673196882790,3.68322848,16961.0,16960.0,0.71089587]
[1673196884005,3.68322848,16961.0,16960.0,0.01089587]
[1673196888421,3.31544148,16961.0,16960.0,0.01089587]
[1673196889211,3.68322848,16961.0,16960.0,0.01089587]
[1673196889900,3.31544148,16961.0,16960.0,0.01089587]
[1673196890215,3.31544148,16961.0,16960.0,0.71089587]
[1673196892897,2.78747981,16961.0,16960.0,0.71089587]
[1673196894460,2.1009234,16961.0,16960.0,0.71089587]
[1673196894716,1.66022881,16961.0,16960.0,0.72126556]
[1673196895291,2.10091778,16961.0,16960.0,0.72126556]
[1673196896608,1.86384315,16961.0,16960.0,0.72126556]
[1673196897136,1.29975875,16961.0,16960.0,0.72126556]
[1673196897395,1.29975875,16961.0,16960.0,1.66300962]
[1673196897679,1.29975875,16961.0,16960.0,1.66315106]
[1673196897976,0.53393504,16961.0,16960.0,1.66315106]
[1673196898489,0.26952961,16961.0,16960.0,1.66315106]
[1673196898997,0.09325395,16961.0,16960.0,1.66315106]
[1673196899820,0.09325395,16961.0,16960.0,2.25277306]
[1673196901193,0.09325395,16961.0,16960.0,2.84239506]
[1673196907222,0.09325395,16961.0,16960.0,2.25277306]
[1673196913245,0.09325395,16961.0,16960.0,1.55263162]
[1673196914223,0.09325395,16961.0,16960.0,2.25263162]
[1673196916753,0.09325395,16961.0,16960.0,2.25277306]
[1673196921000,0.09325395,16961.0,16960.0,1.55277306]
[1673196921238,0.09325395,16961.0,16960.0,1.88450562]
[1673196923363,0.09325395,16961.0,16960.0,1.88464706]
[1673196924816,0.09325395,16961.0,16960.0,1.88450562]
[1673196928382,0.09325395,16961.0,16960.0,1.88464706]
[1673196930565,0.09325395,16961.0,16960.0,1.55277306]
[1673196930734,0.09325395,16961.0,16960.0,1.18464706]
[1673196931433,0.09325395,16961.0,16960.0,1.88464706]
[1673196931709,0.09325395,16961.0,16960.0,2.25277306]
[1673196931967,0.09325395,16961.0,16960.0,1.88464706]
[1673196934364,0.26952961,16961.0,16960.0,1.88464706]
[1673196939330,0.26952961,16961.0,16960.0,2.25277306]
[1673196939620,0.09325395,16961.0,16960.0,2.42935831]
[1673196939862,0.09325395,16961.0,16960.0,3.01898031]
[1673196940113,0.09325395,16961.0,16960.0,3.28385819]
[1673196940374,0.09325395,16961.0,16960.0,3.2734885]
[1673196940649,0.09325395,16961.0,16960.0,4.51488015]
[1673196940924,0.09325395,16961.0,16960.0,4.1018434]
[1673196941180,0.09306777,16961.0,16960.0,3.7486729]
[1673196941707,0.09306777,16961.0,16960.0,4.0486729]
[1673196942280,0.09306777,16961.0,16960.0,4.10239041]
[1673196943374,0.09306777,16961.0,16960.0,4.36768071]
[1673196943672,0.09306777,16961.0,16960.0,4.95730271]
[1673196943965,0.09106777,16961.0,16960.0,4.94640684]
[1673196944216,0.10106777,16961.0,16960.0,5.0263992]
[1673196944471,0.10106777,16961.0,16960.0,4.58493607]
[1673196948206,0.10106777,16961.0,16960.0,4.71674899]
[1673196949304,0.10106777,16961.0,16960.0,3.97628193]
[1673196953244,0.10106777,16961.0,16960.0,3.97630193]
[1673196954256,0.10106777,16961.0,16960.0,3.27630193]
[1673196954767,0.10106777,16961.0,16960.0,2.90817593]
[1673196955296,0.10106777,16961.0,16960.0,3.97630193]
[1673196955786,0.10106777,16961.0,16960.0,4.00542908]
[1673196956798,0.10106777,16961.0,16960.0,2.546863]
[1673196960236,0.10106777,16961.0,16960.0,2.54723357]
[1673196960836,0.10106777,16961.0,16960.0,2.546863]
[1673196962106,0.10106777,16961.0,16960.0,1.957241]
[1673196962899,0.10106777,16961.0,16960.0,1.367619]
[1673196968523,0.10106777,16961.0,16960.0,1.36743302]
[1673196973864,0.27734343,16961.0,16960.0,0.79381496]
[1673196974365,0.26734343,16961.0,16960.0,0.71400094]
[1673196974626,0.27734343,16961.0,16960.0,0.78700094]
[1673196974878,0.26734343,16961.0,16960.0,0.71400094]
[1673196975118,0.27834343,16961.0,16960.0,0.78700094]
[1673196975887,0.27834343,16961.0,16960.0,1.360619]
[1673196977515,0.27834343,16961.0,16960.0,0.78700094]
[1673196979888,0.64613043,16961.0,16960.0,0.78700094]
[1673196980908,0.27834343,16961.0,16960.0,0.78700094]
[1673196981595,0.64613043,16961.0,16960.0,0.78700094]
[1673196982351,0.64613043,16961.0,16960.0,0.78688935]
[1673196982592,0.64613043,16961.0,16960.0,0.08688935]
[1673196983358,0.64613043,16961.0,16960.0,0.78688935]
[1673196983644,0.27834343,16961.0,16960.0,0.78688935]
[1673196983884,0.64613043,16961.0,16960.0,0.78688935]
[1673196984384,0.27834343,16961.0,16960.0,0.78688935]
[1673196985414,0.64613043,16961.0,16960.0,0.78688935]
[1673196986167,0.91053586,16961.0,16960.0,0.78688935]
[1673196986673,0.54274886,16961.0,16960.0,0.78688935]
[1673196986931,0.91053586,16961.0,16960.0,0.78688935]
[1673196987721,0.64613043,16961.0,16960.0,1.36050741]
[1673196987974,0.27834343,16961.0,16960.0,1.36050741]
[1673196988996,0.27834343,16961.0,16960.0,0.78688935]
[1673196989251,0.54274886,16961.0,16960.0,0.78688935]
[1673196989513,0.54274886,16961.0,16960.0,0.08688935]
[1673196989762,0.91053586,16961.0,16960.0,0.08682239]
[1673196990277,0.54274886,16961.0,16960.0,0.08682239]
[1673196990532,0.27834343,16961.0,16960.0,0.78682239]
[1673196990783,0.27834343,16961.0,16960.0,1.36044045]
[1673196992059,0.27834343,16961.0,16960.0,1.36032455]
[1673196992558,0.27834343,16961.0,16960.0,1.36069512]
[1673196993132,0.27834343,16961.0,16960.0,1.36032455]
[1673196994283,0.53174886,16961.0,16960.0,1.28732455]
[1673196994499,0.54074886,16961.0,16960.0,1.35332455]
[1673196995665,0.53174886,16961.0,16960.0,1.28732455]
[1673196995913,0.54074886,16961.0,16960.0,1.35332455]